[Event "German Rapid Championship 2022"]
[Site "Goettingen"]
[Date "2022.09.25"]
[Round "7.10"]
[White "Schmidt, Tobias"]
[Black "Hampel, Felix"]
[Result "0-1"]
[ECO "B22"]
[WhiteElo "2262"]
[BlackElo "2326"]
[Annotator "TA"]
[PlyCount "133"]
[EventDate "2022.09.24"]
[EventType "swiss"]
[EventCountry "GER"]
[SourceTitle "playchess.com"]
[Source "ChessBase"]
[SourceQuality "1"]
[TimeControl "900+10"]

{[%evp 13,133,0,0,0,0,4,13,6,-10,-6,-6,0,48,46,49,43,77,83,75,10,77,30,40,10,23,34,40,35,57,54,68,10,0,0,64,52,60,58,62,55,70,0,15,0,58,0,0,0,13,-14,-9,-26,0,-226,-233,-218,-214,-1387,-1616,-1795,-1796,-1777,-1787,-1602,-1780,-1408,-1766,-1697,-1681,-1715,-1632,-1694,-1684,-1643,-1664,-1515,-1357,-1360,-1336,-1345,-1052,-2156,-2088,-1674,-1697,-5445,-5335,-5114,-4056,-3167,-3054,-2034,-1716,-1964,-1855,-29975,-29974,-29975,-29976,-29972,-29974,-29976,-29977,-29964,-11613,-7196,-5093,-6191,-4040,-29980,-29981,-29981,-29982,-29985,-29986,-29990,-29989,-29989,-29990,-29991,-29992,-29995]} 1. e4 {[%emt 0:00:04][%cal Be2e4,Be4e5][%mdl 32]} c5 {[%emt 0:00:01]} 2. c3 {[%emt 0:00:02]} Nf6 {[%emt 0:00:01]} 3. e5 {[%emt 0:00:01]} Nd5 {[%emt 0:00:01]} 4. Nf3 {[%emt 0:00:02]} e6 {[%emt 0:00:01]} 5. Bc4 {[%emt 0:00:01]} d6 {[%emt 0:00:01]} 6. d4 {[%emt 0:00:02]} cxd4 {[%emt 0:00:01]} 7. cxd4 {[%emt 0:00:02]} Be7 {[%emt 0:00:01]} 8. O-O {[%emt 0:00:02] B22: Sicilian: 2 c3.} O-O {[%emt 0:00:02]} 9. Qe2 {[%emt 0:00:08]} b6 {[%emt 0:00:01]} 10. Qe4 {[%emt 0:00:34] The position is equal.} Ba6 {[%emt 0:00:25]} 11. b3 {[%emt 0:00:02][%cal Bb2b3,Bb3c4][%mdl 32]} dxe5 {[%emt 0:03:31]} 12. dxe5 {[%emt 0:00:42]} Bxc4 {[%emt 0:01:31]} (12... Qc8 $11) 13. bxc4 $14 {[%emt 0:01:16]} Nc7 {[%emt 0:00:01]} 14. Nc3 {[%emt 0:00:31]} Nba6 {[%emt 0:00:25]} 15. Rd1 {[%emt 0:00:13]} Qe8 {[%emt 0:00:30] [#]} 16. Qg4 $146 {[%emt 0:01:04]} (16. Ng5 $16 Bxg5 17. Bxg5) ({Predecessor:} 16. Ng5 Bxg5 17. Bxg5 f6 18. exf6 gxf6 19. Bh6 Rf7 20. Rd3 Kh8 21. Qg4 Nc5 22. Rg3 {1-0 (34) Narva,M (2358)-Lehtinen,H (1818) Helsinki 2019}) 16... Kh8 {[%emt 0:00:19]} (16... f6 $11) 17. Bg5 {[%emt 0:00:53]} (17. Ng5 $16) 17... Nc5 {[%emt 0:00:28]} 18. Qh4 {[%emt 0:00:39]} f6 {[%emt 0:02:13]} 19. exf6 {[%emt 0:02:38]} gxf6 {[%emt 0:00:02]} 20. Be3 {[%emt 0:00:17]} N7a6 {[%emt 0:02:05]} 21. Rd2 {[%emt 0:01:05]} Qg6 {[%emt 0:00:29]} 22. Ne5 {[%emt 0:00:37]} (22. Rad1 $14) 22... Qe8 $1 $11 {[%emt 0:00:58]} 23. Nf3 {[%emt 0:01:25]} Qf7 {[%emt 0:00:28]} ({Black should play} 23... Qg6 $1 $11) 24. Rad1 $14 {[%emt 0:00:17]} Rfd8 {[%emt 0:00:34]} 25. Bd4 {[%emt 0:00:51]} Rg8 {[%emt 0:01:54]} 26. g3 {[%emt 0:00:32]} Rg7 {[%emt 0:00:36]} 27. a4 {[%emt 0:01:02]} (27. Be3 $14) 27... Rag8 {[%emt 0:00:03]} 28. Re2 {[%emt 0:00:43][%cal Oc3d5]} e5 {[%emt 0:00:25]} (28... Nb3 $11) 29. Bxc5 {[%emt 0:01:10]} (29. Nd5 $14 Bd8 30. Bxc5 Nxc5 31. Ne3) 29... Nxc5 $11 {[%emt 0:00:02]} 30. Nd5 {[%emt 0:00:17]} Bd8 {[%emt 0:01:12]} 31. Qh6 {[%emt 0:00:31]} Nxa4 {[%emt 0:00:58]} 32. Nh4 {[%emt 0:00:19] Pair of Knights!} f5 {[%emt 0:00:21] aiming for ...Bg5.} (32... Rg5 $5 {[%cal Rg5h5]} 33. Nf3 Rh5 $15) 33. Qc6 $2 {[%emt 0:01:17] Black keeps a firm grip on the game.} (33. Rxe5 $11 {and White is okay.} Bg5 34. Qc6 Bxh4 35. Rd4 (35. Qxa4 f4 $17)) 33... Bxh4 $19 {[%emt 0:00:12]} ({Not} 33... Nc5 $2 34. Ng2 Qh5 35. Nc3) 34. Qxa4 {[%emt 0:00:01] [#]} f4 $1 {[%emt 0:00:08][%cal Rf4g3]} 35. Qc2 $2 {[%emt 0:00:38]} (35. Rxe5 {leads to mate.} fxg3 36. f4 gxh2+ 37. Kh1 Qg6) (35. Rd3 e4 36. Rb3 (36. Rxe4 $2 fxg3 37. hxg3 Bxg3 $19)) 35... fxg3 {[%emt 0:00:22]} 36. fxg3 {[%emt 0:00:02] [#]} Bxg3 $1 {[%emt 0:00:06][%mdl 512]} 37. hxg3 {[%emt 0:00:05]} Rxg3+ {[%emt 0:00:01]} 38. Rg2 {[%emt 0:00:01]} Rxg2+ {[%emt 0:00:22]} 39. Qxg2 {[%emt 0:00:01]} Rxg2+ {[%emt 0:00:05]} 40. Kxg2 {[%emt 0:00:02][%mdl 4096] Endgame KQ-KRN} Qg6+ {[%emt 0:00:02]} 41. Kf1 {[%emt 0:00:11]} Qe4 {[%emt 0:00:37]} 42. Kf2 {[%emt 0:00:48]} Qc2+ {[%emt 0:00:15]} 43. Ke1 {[%emt 0:00:01]} Qxc4 {[%emt 0:00:01]} 44. Ne3 {[%emt 0:00:02]} Qb4+ {[%emt 0:00:05]} 45. Ke2 {[%emt 0:00:05]} a5 {[%emt 0:00:10][%cal Ba7a5,Ba5a4][%mdl 32] Threatens to win with ...a4.} 46. Rc1 {[%emt 0:01:03]} Kg7 {[%emt 0:00:17]} 47. Nf5+ {[%emt 0:00:05]} Kg6 {[%emt 0:00:11]} 48. Ne3 {[%emt 0:00:02]} a4 {[%emt 0:00:08]} 49. Rg1+ {[%emt 0:00:06]} Kf7 {[%emt 0:00:02]} 50. Rf1+ {[%emt 0:00:05]} Ke6 {[%emt 0:00:03]} 51. Rf6+ {[%emt 0:00:07]} Kd7 {[%emt 0:00:24]} 52. Rf7+ {[%emt 0:00:22]} Kc6 {[%emt 0:00:11]} 53. Rc7+ {[%emt 0:00:12]} Kb5 {[%emt 0:00:06] White must now prevent ...a3.} 54. Rc2 {[%emt 0:00:03]} a3 {[%emt 0:00:06]} 55. Nd1 {[%emt 0:00:08]} Qg4+ {[%emt 0:00:28]} 56. Kd2 {[%emt 0:00:02]} Ka5 {[%emt 0:00:04]} 57. Ne3 {[%emt 0:00:08]} Qd4+ {[%emt 0:00:06]} 58. Ke2 {[%emt 0:00:01]} b5 {[%emt 0:00:10]} 59. Kf3 {[%emt 0:00:13]} e4+ {[%emt 0:00:14]} 60. Kf4 {[%emt 0:00:05]} b4 {[%emt 0:00:12] ( -> ...b3)} 61. Nc4+ {[%emt 0:00:08]} Ka4 {[%emt 0:00:06] Black mates.} 62. Ne3 {[%emt 0:00:03]} Kb3 {[%emt 0:00:14]} 63. Re2 {[%emt 0:00:07]} a2 {[%emt 0:00:06]} 64. Nc2 {[%emt 0:00:02]} Qf6+ {[%emt 0:00:08]} 65. Kxe4 {[%emt 0:00:02]} Qe6+ {[%emt 0:00:03]} 66. Kd3 {[%emt 0:00:03] [#]} Qxe2+ $3 {[%emt 0:00:02][%mdl 512]} 67. Kd4 {Weighted Error Value: White=0.41/Black=0.12 (very precise)} (67. Kxe2 Kxc2) 0-1

[Event "German Rapid Championship 2022"]
[Site "Goettingen"]
[Date "2022.09.25"]
[Round "7.12"]
[White "Schenderowitsch, Michael"]
[Black "Elier, Ali"]
[Result "0-1"]
[ECO "D32"]
[WhiteElo "2292"]
[BlackElo "2164"]
[Annotator "TA"]
[PlyCount "104"]
[EventDate "2022.09.24"]
[EventType "swiss"]
[EventCountry "GER"]
[SourceTitle "playchess.com"]
[Source "ChessBase"]
[SourceQuality "1"]
[TimeControl "900+10"]

{[%evp 26,104,65,43,37,43,78,0,63,70,69,66,52,56,52,58,51,56,66,40,50,45,133,47,84,85,208,225,225,221,208,-56,-45,-453,-435,-450,-441,-463,-467,-459,-463,-472,-460,-491,-489,-483,-484,-666,-665,-650,-644,-706,-702,-796,-749,-763,-793,-890,-887,-913,-874,-1051,-1035,-1061,-1007,-1058,-1052,-1072,-1053,-2035,-1943,-1885,-1663,-4702,-4590,-29987,-29988,-29987,-29987,-29989,-29990]} 1. d4 {[%emt 0:00:01]} d5 {[%emt 0:00:03]} 2. c4 {[%emt 0:00:01]} e6 {[%emt 0:00:01]} 3. Nc3 {[%emt 0:00:02]} c5 {[%emt 0:00:00]} 4. cxd5 {[%emt 0:00:04]} cxd4 {[%emt 0:00:02]} 5. Qa4+ {[%emt 0:00:08]} Bd7 {[%emt 0:00:06]} 6. Qxd4 {[%emt 0:00:03]} exd5 {[%emt 0:00:01]} 7. Qxd5 {[%emt 0:00:18]} Nc6 {[%emt 0:00:02]} 8. Qd1 {[%emt 0:00:21]} Nf6 {[%emt 0:00:03]} 9. Nf3 {[%emt 0:00:06]} Bc5 {[%emt 0:00:02]} 10. e3 {[%emt 0:00:02]} Qe7 {[%emt 0:00:03]} 11. Be2 {[%emt 0:00:07]} O-O-O {[%emt 0:00:03]} 12. O-O {[%emt 0:00:31]} g5 {[%emt 0:00:03]} 13. b4 {[%emt 0:01:27]} Bxb4 {[%emt 0:00:03]} 14. Qb3 {[%emt 0:04:30]} Kb8 {[%emt 0:00:24] D32: Tarrasch Defence: Sidelines and lines without g3.} 15. Rb1 {[%emt 0:02:17]} Bf5 {[%emt 0:00:59]} 16. Rb2 {[%emt 0:00:30] [#]} (16. e4 $1 $16 {[%cal Re4f5]} Nxe4 17. Nd5 Rxd5 18. Qxd5) 16... g4 $146 {[%emt 0:00:43]} (16... Be6 $11 17. Qc2 g4) ({Predecessor:} 16... Be6 17. Bc4 Rd3 18. Bd2 Ne4 19. Nd4 Rxd4 20. exd4 Nxd2 21. Rxd2 Na5 22. Qc2 Nxc4 {½-½ (37) Pouliot,J-Patterson,L Canada 1986}) 17. Nd4 $1 $14 {[%emt 0:00:49]} Nxd4 {[%emt 0:01:10]} 18. exd4 {[%emt 0:00:11]} ({Much worse is} 18. Qxb4 $6 Qxb4 19. Rxb4 Nd5 20. Rxd4 Nxc3 $15) 18... Bxc3 {[%emt 0:02:40]} (18... Rxd4 $2 19. Nb5 Bc5 20. Bg5 $18) 19. Qxc3 {[%emt 0:00:11] Ba6 is the strong threat.} Nd5 {[%emt 0:00:26]} 20. Qb3 {[%emt 0:00:47]} Ka8 {[%emt 0:00:15]} 21. Bc4 {[%emt 0:00:36]} Be6 {[%emt 0:00:33] [#]} 22. Bg5 $1 $36 {[%emt 0:01:17][%cal Bc1g5,Bg5d2,Bd2a5][%mdl 2080] White has some pressure.} f6 {[%emt 0:00:38]} 23. Bd2 {[%emt 0:02:14] And now Re1 would win. A strong pair of Bishops.} Qf7 {[%emt 0:02:11]} (23... Rd7 $14) 24. Rfb1 {[%emt 0:00:48]} ({White should try} 24. Re1 $16 {[%cal Oe1e6] Hoping for Rxe6!} Rhe8 25. Ba5 (25. Rxe6 Rxe6 26. Ba5 Rc8 $15)) 24... Rd7 {[%emt 0:00:31][%cal Od5f4]} 25. Re1 {[%emt 0:00:16]} Rhd8 {[%emt 0:02:32]} (25... Rc8 $16 {is a better defense.}) 26. Ba5 $18 {[%emt 0:00:35]} Rc8 {[%emt 0:00:22]} 27. Rbe2 {[%emt 0:00:50]} Bf5 {[%emt 0:00:36]} 28. Bb5 $2 {[%emt 0:00:23]} (28. g3 $18) 28... Nf4 $1 $15 {[%emt 0:00:44][%csl LRd4,LRe2]} 29. Rd2 $2 {[%emt 0:00:16][%mdl 8192] [#] Black converts the advantage convincingly.} ({White should play} 29. Rb2 $15) 29... Qxb3 $1 $19 30. axb3 {[%emt 0:00:01]} Rd5 {[%emt 0:00:24]} 31. Bc4 {[%emt 0:00:22]} Rxa5 {[%emt 0:00:04]} 32. d5 {[%emt 0:00:01]} Rd8 {[%emt 0:01:14]} 33. d6 {[%emt 0:00:07]} Re5 {[%emt 0:00:13]} 34. Red1 {[%emt 0:00:03]} b5 {[%emt 0:00:15]} 35. Bf1 {[%emt 0:00:04]} Kb7 {[%emt 0:00:09]} 36. g3 {[%emt 0:00:03]} Nh3+ {[%emt 0:00:05]} 37. Bxh3 {[%emt 0:00:25]} gxh3 {[%emt 0:00:02]} 38. f3 {[%emt 0:00:03]} Re3 {[%emt 0:00:27]} 39. g4 {[%emt 0:00:20]} Be6 {[%emt 0:00:28]} 40. Kf2 {[%emt 0:00:00]} Rxb3 {[%emt 0:00:03]} 41. Re1 {[%emt 0:00:01]} Bd7 {[%emt 0:00:19]} 42. Re7 {[%emt 0:00:26]} Kb6 {[%emt 0:00:01]} 43. Rc2 {[%emt 0:00:17]} Rd3 {[%emt 0:00:05]} 44. Rxh7 {[%emt 0:00:06]} Rxd6 {[%emt 0:00:02]} 45. Rxh3 {[%emt 0:00:01]} a5 {[%emt 0:00:01][%cal Ba7a5,Ba5a4,Ba4a3][%mdl 32]} 46. Rh6 {[%emt 0:00:02]} b4 {[%emt 0:00:15][%cal Bb5b4,Bb4b3][%mdl 32]} 47. g5 {[%emt 0:00:03]} b3 {[%emt 0:00:02]} 48. Rb2 {[%emt 0:00:06]} a4 {[%emt 0:00:01]} 49. g6 {[%emt 0:00:11]} Be6 {[%emt 0:00:06] ( -> ...a3)} 50. g7 {[%emt 0:00:15]} a3 {[%emt 0:00:09] Black mates.} 51. Re2 {[%emt 0:00:04]} b2 {[%emt 0:00:20]} 52. Rh8 {[%emt 0:00:55]} Bg8 {[%emt 0:00:24] Weighted Error Value: White=0.62/Black=0.16 (very precise)} 0-1

[Event "German Rapid Championship 2022"]
[Site "Goettingen"]
[Date "2022.09.25"]
[Round "7.13"]
[White "Perkampus, Laurin"]
[Black "Kersten, Uwe"]
[Result "1/2-1/2"]
[ECO "A60"]
[WhiteElo "2123"]
[BlackElo "2261"]
[Annotator "TA"]
[PlyCount "60"]
[EventDate "2022.09.24"]
[EventType "swiss"]
[EventCountry "GER"]
[SourceTitle "playchess.com"]
[Source "ChessBase"]
[SourceQuality "1"]
[TimeControl "900+10"]

{[%evp 22,60,56,44,123,118,129,129,134,133,140,102,112,132,136,75,108,125,119,73,79,81,207,213,220,207,269,291,264,276,275,289,292,289,264,270,268,241,353,362,218]} 1. d4 {[%emt 0:00:05]} e6 {[%emt 0:00:07]} 2. c4 {[%emt 0:00:04]} c5 {[%emt 0:00:26]} 3. d5 {[%emt 0:00:11]} Nf6 {[%emt 0:00:04]} 4. Nc3 {[%emt 0:00:02]} d6 {[%emt 0:00:02]} 5. e4 {[%emt 0:00:15]} g6 {[%emt 0:00:04]} 6. Nf3 {[%emt 0:00:06]} Bg7 {[%emt 0:00:02]} 7. h3 {[%emt 0:00:30]} O-O {[%emt 0:00:03]} 8. Bg5 {[%emt 0:00:37]} h6 {[%emt 0:00:18]} 9. Be3 {[%emt 0:00:17]} exd5 {[%emt 0:00:35]} 10. cxd5 {[%emt 0:00:22]} Re8 {[%emt 0:01:13]} 11. Bd3 {[%emt 0:00:01]} a6 {[%emt 0:00:35]} 12. a4 $1 {[%emt 0:00:01]} c4 {[%emt 0:00:16] A65: Modern Benoni: 6 e4.} (12... Nbd7 $14) 13. Bc2 $16 {[%emt 0:00:01]} (13. Bxc4 $6 Nxe4 14. Nxe4 Rxe4 $11) 13... Nbd7 {[%emt 0:00:12]} 14. O-O {[%emt 0:00:14]} Qc7 {[%emt 0:00:19] White is better.} 15. Qd2 {[%emt 0:01:02]} Kh7 {[%emt 0:00:53]} 16. Rfe1 {[%emt 0:00:11] White is more active.} Nc5 {[%emt 0:00:11][%cal Rc5e4]} 17. Bd4 {[%emt 0:00:37] [#]} b6 $146 {[%emt 0:03:18]} ({Predecessor:} 17... Ncd7 18. a5 b5 19. axb6 Nxb6 20. e5 dxe5 21. Bxe5 Qd8 22. Qf4 Ra7 23. Qd4 Rd7 {½-½ (38) Dianda,J (2000)-Domingues,P (1841) Niteroi 2022}) 18. Rad1 {[%emt 0:00:48]} (18. e5 $142 dxe5 19. Nxe5 (19. Bxe5 Qd8 $16)) 18... Bb7 {[%emt 0:00:10]} 19. Nh2 {[%emt 0:01:37]} Re7 {[%emt 0:05:05]} 20. Re3 {[%emt 0:04:13]} ({Don't play} 20. Bxf6 Bxf6 21. Ng4 Bg7 $14) (20. Qe2 $142) 20... Rae8 {[%emt 0:00:14][%cal Rc5e4]} 21. Rde1 {[%emt 0:02:02]} Nb3 {[%emt 0:01:02] This costs Black the game.} (21... Ncd7 $16) 22. Bxb3 $18 {[%emt 0:00:02]} cxb3 {[%emt 0:00:01]} 23. Rf3 {[%emt 0:01:02]} Nxe4 {[%emt 0:00:46]} 24. Rxe4 {[%emt 0:01:23]} Rxe4 {[%emt 0:00:13]} 25. Nxe4 {[%emt 0:00:01]} Rxe4 {[%emt 0:00:04]} 26. Bxg7 {[%emt 0:00:05]} Kxg7 {[%emt 0:00:36] [#]} 27. Ng4 $1 {[%emt 0:00:03][%cal Bh2g4,Bg4h6,Bh6f5,Bf5g3][%mdl 32]} g5 {[%emt 0:00:36] [#] aiming for ...Qc2.} 28. Nxh6 $1 {[%emt 0:01:49][%mdl 512]} f6 {[%emt 0:01:27] Threatens to win with ...Qc2.} (28... Kxh6 $2 29. Rf6+ Kg7 30. Qxg5+ Kf8 31. Rh6 Re1+ 32. Kh2 $18) 29. Nf5+ {[%emt 0:01:09]} Kg6 (29... Kf8 {was worth a try.} 30. Nd4 (30. Rxb3 Qd8 $16) (30. Ng3 Rf4 $18) 30... Qe7) 30. Ng3 Re5 {Weighted Error Value: White=0.10 (very precise) /Black=0.33} 1/2-1/2

[Event "German Rapid Championship 2022"]
[Site "Goettingen"]
[Date "2022.09.25"]
[Round "8.1"]
[White "Bluebaum, Matthias"]
[Black "Heider, Martin"]
[Result "1-0"]
[ECO "D85"]
[WhiteElo "2647"]
[BlackElo "2393"]
[Annotator "TA"]
[PlyCount "57"]
[EventDate "2022.09.24"]
[EventType "swiss"]
[EventCountry "GER"]
[SourceTitle "playchess.com"]
[Source "ChessBase"]
[SourceQuality "1"]
[TimeControl "900+10"]

{[%evp 19,57,7,6,1,27,38,65,63,88,97,108,93,232,219,278,237,234,217,231,232,214,122,126,110,323,317,258,256,437,416,758,743,743,718,834,814,2023,1917,29992,29992]} 1. d4 {[%emt 0:00:02]} Nf6 {[%emt 0:00:05]} 2. c4 {[%emt 0:00:01]} g6 {[%emt 0:00:02]} 3. Nc3 {[%emt 0:00:01]} d5 {[%emt 0:00:01]} 4. cxd5 {[%emt 0:00:05]} Nxd5 {[%emt 0:00:04]} 5. e4 {[%emt 0:00:02]} Nxc3 {[%emt 0:00:01]} 6. bxc3 {[%emt 0:00:01]} Bg7 {[%emt 0:00:02]} 7. Nf3 {[%emt 0:00:02]} c5 {[%emt 0:00:06]} 8. Bb5+ {[%emt 0:00:02]} Nc6 {[%emt 0:00:37]} 9. O-O {[%emt 0:00:04]} O-O {[%emt 0:00:19]} 10. Bxc6 {[%emt 0:00:03]} bxc6 {[%emt 0:00:02]} 11. Qc2 {[%emt 0:00:01] D85: Exchange Grünfeld: Unusual White 7th moves and lines with 7 Nf3.} Bg4 {[%emt 0:01:29]} (11... cxd4 {with more complications.} 12. cxd4 Bg4 13. Ne5 Qxd4 14. Bb2 Qb6) 12. Ne5 {[%emt 0:00:04]} Bxe5 {[%emt 0:02:10]} 13. dxe5 {[%emt 0:00:02] White is slightly better.} Qa5 {[%emt 0:00:39]} 14. Bg5 {[%emt 0:01:39] [#]} Qc7 $146 {[%emt 0:01:34]} ({Predecessor:} 14... Rfe8 15. h3 Be6 16. f4 Rad8 17. f5 Bc4 18. Rf3 Qc7 19. Bf4 Qc8 20. Re1 Kh8 {1-0 (43) Yankelevich,L (2444)-Finek,V (2419) Vienna 2022}) 15. f4 {[%emt 0:00:32][%cal Bf2f4,Bf4f5][%mdl 32]} f6 {[%emt 0:02:32] [#]} (15... Be6 $16 {keeps fighting.}) 16. Bh6 $1 $18 {[%emt 0:00:15]} Rfb8 {[%emt 0:01:24]} 17. h3 {[%emt 0:02:23]} Be6 {[%emt 0:00:55]} 18. exf6 {[%emt 0:01:54] aiming for f5.} exf6 {[%emt 0:00:40] [#]} 19. f5 $1 {[%emt 0:00:06]} Bc4 {[%emt 0:00:11]} 20. Bf4 {[%emt 0:00:21]} ({White should try} 20. Rf3 $18) 20... Qf7 $16 {[%emt 0:00:37]} 21. Rf3 {[%emt 0:01:08]} Rd8 {[%emt 0:00:48]} (21... Re8 $16 {was called for.}) 22. fxg6 $18 {[%emt 0:00:41]} hxg6 {[%emt 0:00:13]} 23. Be5 {[%emt 0:00:25]} Bd3 $2 {[%emt 0:00:51]} (23... Rd3) 24. Qf2 {[%emt 0:00:13]} (24. Rxd3 fxe5 25. Rad1 Rxd3 26. Qxd3 Rf8 $16) 24... Bxe4 {[%emt 0:00:23]} (24... Rf8 $142 25. Bxf6 (25. Rxd3 fxe5 26. Qxc5 Rab8 $18) 25... c4) 25. Rxf6 {[%emt 0:00:12]} Qh7 {[%emt 0:01:40]} 26. Re1 {[%emt 0:01:06]} Bd3 {[%emt 0:01:19]} 27. Qxc5 {[%emt 0:00:39]} Rf8 {[%emt 0:00:12]} 28. Qxc6 {[%emt 0:00:19] Qd5+ would kill now.} Bc2 {[%emt 0:00:43]} 29. Qd5+ {[%emt 0:00:08] Weighted Error Value: White=0.10 (very precise) /Black=1.04} 1-0

[Event "German Rapid Championship 2022"]
[Site "Goettingen"]
[Date "2022.09.25"]
[Round "8.2"]
[White "Poetsch, Hagen"]
[Black "Fridman, Daniel"]
[Result "1/2-1/2"]
[ECO "C11"]
[WhiteElo "2491"]
[BlackElo "2607"]
[Annotator "TA"]
[PlyCount "39"]
[EventDate "2022.09.24"]
[EventType "swiss"]
[EventCountry "GER"]
[SourceTitle "playchess.com"]
[Source "ChessBase"]
[SourceQuality "1"]
[TimeControl "900+10"]

{[%evp 22,26,48,22,42,34,54]} 1. e4 {[%emt 0:00:02]} e6 {[%emt 0:00:01]} 2. d4 {[%emt 0:00:03]} d5 {[%emt 0:00:01]} 3. Nc3 {[%emt 0:00:02]} Nf6 {[%emt 0:00:02]} 4. e5 {[%emt 0:00:01]} Nfd7 {[%emt 0:00:01]} 5. f4 {[%emt 0:00:02]} c5 {[%emt 0:00:01]} 6. Nf3 {[%emt 0:00:01]} Nc6 {[%emt 0:00:01]} 7. Be3 {[%emt 0:00:02]} Qb6 {[%emt 0:00:02]} 8. Na4 {[%emt 0:00:04]} Qa5+ {[%emt 0:00:01]} 9. c3 {[%emt 0:00:01]} c4 {[%emt 0:00:01]} 10. b4 {[%emt 0:00:06]} Qc7 {[%emt 0:00:08] 10...Qc7 has become a bit dusty these days.} 11. Be2 {[%emt 0:00:22]} Be7 {[%emt 0:00:34]} 12. O-O {[%emt 0:00:04]} ({Much weaker is} 12. b5 Nd8 $11) 12... O-O {[%emt 0:00:03] C11: French: Classical System: 4 e5 and 4 Bg5 dxe4.} 13. Qd2 {[%emt 0:01:16]} f5 {[%emt 0:01:39] [#]} {Predecessor:} 14. exf6 $146 Nxf6 15. Qc2 b6 16. Ne5 Bb7 17. Nb2 b5 18. a4 a6 19. Bf3 Bd6 20. Rae1 {1-0 (144) Robson,R (2660)-Akobian,V (2647) Saint Louis 2018} 1/2-1/2

[Event "German Rapid Championship 2022"]
[Site "Goettingen"]
[Date "2022.09.25"]
[Round "8.3"]
[White "Svane, Rasmus"]
[Black "Arndt, Magnus"]
[Result "1-0"]
[ECO "A05"]
[WhiteElo "2615"]
[BlackElo "2384"]
[Annotator "TA"]
[PlyCount "71"]
[EventDate "2022.09.24"]
[EventType "swiss"]
[EventCountry "GER"]
[SourceTitle "playchess.com"]
[Source "ChessBase"]
[SourceQuality "1"]
[TimeControl "900+10"]

{[%evp 14,71,12,0,20,13,18,-29,10,-6,0,-3,23,18,28,22,27,18,20,0,0,0,55,69,63,59,100,29,83,79,112,117,118,116,145,125,133,107,123,118,171,170,231,235,271,275,372,367,659,627,870,836,1431,1412,1353,1312,1270,1250,767,630]} 1. Nf3 {[%emt 0:00:03]} Nf6 {[%emt 0:00:02]} 2. g3 {[%emt 0:00:03]} d5 {[%emt 0:00:04]} 3. Bg2 {[%emt 0:00:03]} e6 {[%emt 0:00:02]} 4. O-O {[%emt 0:00:04]} Be7 {[%emt 0:00:02]} 5. c4 {[%emt 0:00:03]} O-O {[%emt 0:00:03]} 6. b3 {[%emt 0:00:03]} b6 {[%emt 0:00:06]} 7. d4 {[%emt 0:00:06]} Bb7 {[%emt 0:00:08]} 8. Nc3 {[%emt 0:00:03]} c5 {[%emt 0:00:49] E18: Queen's Indian: Old Main Line (4 g3 Bb7 5 Bg2 Be7 6 0-0 0-0 7 Nc3).} 9. dxc5 {[%emt 0:00:36]} Bxc5 {[%emt 0:02:07]} 10. Ne5 {[%emt 0:04:39]} (10. Ne1 {is superior.}) 10... Nbd7 {[%emt 0:04:08] Black has an edge.} (10... Qe7 $5 {[%cal Rd5c4]}) 11. Bf4 {[%emt 0:02:18]} Rc8 {[%emt 0:03:54]} 12. Rc1 {[%emt 0:00:03] [#]} Ba8 $146 {[%emt 0:01:13]} ({Predecessor:} 12... Bb4 13. Nb5 Nxe5 14. Bxe5 a6 15. Nc3 Bxc3 16. Bxc3 Qe7 17. Qd2 Rfd8 {0-1 (48) Berczes,C (2381)-Nemeth,D (2132) Zalakaros 2009}) 13. cxd5 {[%emt 0:03:40] Strongly threatening Nc6.} Nxe5 {[%emt 0:00:45]} 14. Bxe5 {[%emt 0:00:05]} Nxd5 {[%emt 0:00:11]} 15. Nxd5 {[%emt 0:00:08]} Bxd5 {[%emt 0:00:01]} 16. e4 {[%emt 0:00:17]} Bb7 {[%emt 0:01:01]} 17. Qg4 {[%emt 0:00:11][%csl Ge5][%cal Rg4g7]} f6 {[%emt 0:00:30]} (17... g6 $1 $11) 18. Qxe6+ $14 {[%emt 0:00:25]} Kh8 {[%emt 0:00:01]} 19. Bf4 {[%emt 0:02:22]} Re8 {[%emt 0:00:26] [#]} 20. Qf5 {[%emt 0:00:07] White is more active.} ({White should play} 20. Qg4 $1 $16 {Hoping for Rcd1.} Qe7 21. Rfd1) 20... Qe7 {[%emt 0:01:29]} (20... Qd3 $11 {keeps the balance.}) 21. Rfe1 $16 {[%emt 0:00:27] Black is on the road to losing.} Bb4 {[%emt 0:00:02] [#]} 22. Red1 {[%emt 0:00:17] Black must now prevent Rd7.} Rxc1 {[%emt 0:01:04]} 23. Rxc1 {[%emt 0:00:04]} Bd6 {[%emt 0:00:25] Inhibits Rc7.} 24. Rd1 {[%emt 0:01:28][%cal Bc1d1,Bd1d4,Bd4d7,Bd7a7,Ba7a8,Ba8e8][%mdl 32]} Bxf4 {[%emt 0:00:14]} 25. Qxf4 {[%emt 0:00:03]} h6 {[%emt 0:00:17][%cal Rb7e4]} (25... Bxe4 $2 26. Qxe4 Qxe4 27. Bxe4 $18) 26. Rd4 {[%emt 0:00:59]} Qc5 {[%emt 0:00:12]} (26... Rd8 $16 27. Rxd8+ Qxd8) 27. Rd7 $18 {[%emt 0:00:19]} Bc8 {[%emt 0:00:11]} (27... Qc8 {is a better defense.} 28. Rc7 Qb8) 28. Rxa7 $40 {[%emt 0:00:27][%mdl 128] White goes for the king.} Qd4 {[%emt 0:00:10] ( -> ...Qd1+)} 29. h4 {[%emt 0:00:05]} b5 {[%emt 0:00:10]} 30. Qc7 {[%emt 0:00:09][%csl Ga7][%cal Rc7g7]} f5 $2 {[%emt 0:00:01]} (30... Rg8 31. Ra8 Qa1+ 32. Kh2 Be6) 31. Ra8 {[%emt 0:00:20] White is clearly winning.} Qd1+ {[%emt 0:00:17]} 32. Kh2 {[%emt 0:00:04]} Qd7 {[%emt 0:00:10]} 33. Qxd7 {[%emt 0:00:11]} Bxd7 {[%emt 0:00:01]} 34. Rxe8+ {[%emt 0:00:02]} Bxe8 {[%emt 0:00:01]} 35. exf5 {[%emt 0:00:02]} Bd7 {[%emt 0:00:01]} 36. g4 {[%emt 0:00:13] Weighted Error Value: White=0.10 (very precise) /Black=0.57} 1-0